[Event "Titled Tuesday Blitz August 16 Late 2022"]
[White "Melikyan, Gnel"]
[Black "Ibarra Jerez, Jose Carlos"]
[WhiteFideId "54109990"]
[BlackFideId "2226332"]
[WhiteElo "1772"]
[BlackElo "2628"]
[Result "0-1"]
[Round "07"]
[TimeControl "180+1"]
[Date "2022.08.16"]
[WhiteClock "0:00:04"]
[BlackClock "0:00:05"]

1. e4 {[%clk 0:02:58]}  Nc6 {[%clk 0:02:55]} 2. Nf3 {[%clk 0:02:58]}  d6 {[%clk 0:02:55]} 3. Nc3 {[%clk 0:02:54]}  Nf6 {[%clk 0:02:55]} 4. Bc4 {[%clk 0:02:47]}  g6 {[%clk 0:02:55]} 5. h3 {[%clk 0:02:42]}  Bg7 {[%clk 0:02:55]} 6. d4 {[%clk 0:02:40]}  O-O {[%clk 0:02:54]} 7. O-O {[%clk 0:02:39]}  Nxe4 {[%clk 0:02:54]} 8. Nxe4 {[%clk 0:02:39]}  d5 {[%clk 0:02:54]} 9. Bxd5 {[%clk 0:02:16]}  Qxd5 {[%clk 0:02:54]} 10. Nc3 {[%clk 0:02:15]}  Qa5 {[%clk 0:02:41]} 11. Ne2 {[%clk 0:02:12]}  Rd8 {[%clk 0:02:39]} 12. c3 {[%clk 0:02:09]}  e5 {[%clk 0:02:37]} 13. Bg5 {[%clk 0:02:09]}  e4 {[%clk 0:02:30]} 14. b4 {[%clk 0:01:51]}  Qd5 {[%clk 0:02:22]} 15. c4 {[%clk 0:01:44]}  Qxc4 {[%clk 0:02:16]} 16. Nd2 {[%clk 0:01:41]}  Qd5 {[%clk 0:02:00]} 17. Bxd8 {[%clk 0:01:41]}  Nxd8 {[%clk 0:01:59]} 18. Nc3 {[%clk 0:01:38]}  Qxd4 {[%clk 0:02:00]} 19. Ndxe4 {[%clk 0:01:37]}  Ne6 {[%clk 0:01:09]} 20. Qxd4 {[%clk 0:01:30]}  Nxd4 {[%clk 0:01:09]} 21. Rad1 {[%clk 0:01:17]}  Be6 {[%clk 0:01:08]} 22. Nc5 {[%clk 0:00:59]}  Bc4 {[%clk 0:01:07]} 23. Rfe1 {[%clk 0:00:49]}  b6 {[%clk 0:01:07]} 24. Nd7 {[%clk 0:00:31]}  Nc2 {[%clk 0:00:51]} 25. Re4 {[%clk 0:00:28]}  Be6 {[%clk 0:00:48]} 26. Nb5 {[%clk 0:00:20]}  Rd8 {[%clk 0:00:38]} 27. Nxc7 {[%clk 0:00:16]}  Rxd7 {[%clk 0:00:35]} 28. Rxd7 {[%clk 0:00:16]}  Bxd7 {[%clk 0:00:36]} 29. Re7 {[%clk 0:00:14]}  Ba4 {[%clk 0:00:36]} 30. Nd5 {[%clk 0:00:14]}  Bc6 {[%clk 0:00:25]} 31. Nf4 {[%clk 0:00:05]}  Bf8 {[%clk 0:00:19]} 32. Rc7 {[%clk 0:00:05]}  Ba4 {[%clk 0:00:12]} 33. Rxa7 {[%clk 0:00:04]}  b5 {[%clk 0:00:12]} 34. Nd3 {[%clk 0:00:04]}  Nxb4 {[%clk 0:00:12]} 35. Ne5 {[%clk 0:00:05]}  f6 {[%clk 0:00:07]} 36. Nd7 {[%clk 0:00:05]}  Be7 {[%clk 0:00:07]} 37. Nb6 {[%clk 0:00:02]}  Bc5 {[%clk 0:00:06]} 38. Ra8+ {[%clk 0:00:03]}  Kf7 {[%clk 0:00:06]} 39. Nxa4 {[%clk 0:00:03]}  bxa4 {[%clk 0:00:07]} 40. Rxa4 {[%clk 0:00:04]}  Nd3 {[%clk 0:00:07]} 41. Kf1 {[%clk 0:00:02]}  Nxf2 {[%clk 0:00:07]} 42. Ra6 {[%clk 0:00:03]}  Ne4 {[%clk 0:00:06]} 43. Rc6 {[%clk 0:00:04]}  f5 {[%clk 0:00:06]} 44. Ke2 {[%clk 0:00:04]}  Ke7 {[%clk 0:00:06]} 45. Kd3 {[%clk 0:00:04]}  Bd6 {[%clk 0:00:04]} 46. Ra6 {[%clk 0:00:04]}  Nc5+ {[%clk 0:00:05]} 0-1


[Site "https://www.chess.com"]

[Event "Titled Tuesday Blitz August 16 Late 2022"]
[White "Michalski, Olaf"]
[Black "Mickiewicz, Piotr"]
[WhiteFideId "1106740"]
[BlackFideId "1114891"]
[WhiteElo "1937"]
[BlackElo "2266"]
[Result "0-1"]
[Round "07"]
[TimeControl "180+1"]
[Date "2022.08.18"]
[WhiteClock "0:00:00"]
[BlackClock "0:00:00"]

1. d4 {[%clk 0:00:00]}  Nf6 {[%clk 0:00:00]} 2. c4 {[%clk 0:00:00]}  g6 {[%clk 0:00:00]} 3. Nc3 {[%clk 0:00:00]}  Bg7 {[%clk 0:00:00]} 4. e4 {[%clk 0:00:00]}  d6 {[%clk 0:00:00]} 5. Nf3 {[%clk 0:00:00]}  O-O {[%clk 0:00:00]} 6. Be2 {[%clk 0:00:00]}  e5 {[%clk 0:00:00]} 7. d5 {[%clk 0:00:00]}  a5 {[%clk 0:00:00]} 8. O-O {[%clk 0:00:00]}  Na6 {[%clk 0:00:00]} 9. Bg5 {[%clk 0:00:00]}  h6 {[%clk 0:00:00]} 10. Bh4 {[%clk 0:00:00]}  Nc5 {[%clk 0:00:00]} 11. Nd2 {[%clk 0:00:00]}  Bd7 {[%clk 0:00:00]} 12. b3 {[%clk 0:00:00]}  c6 {[%clk 0:00:00]} 13. a3 {[%clk 0:00:00]}  Qb8 {[%clk 0:00:00]} 14. b4 {[%clk 0:00:00]}  axb4 {[%clk 0:00:00]} 15. axb4 {[%clk 0:00:00]}  Rxa1 {[%clk 0:00:00]} 16. Qxa1 {[%clk 0:00:00]}  Na6 {[%clk 0:00:00]} 17. dxc6 {[%clk 0:00:00]}  bxc6 {[%clk 0:00:00]} 18. Qxa6 {[%clk 0:00:00]}  Qxb4 {[%clk 0:00:00]} 19. Rc1 {[%clk 0:00:00]}  Nh5 {[%clk 0:00:00]} 20. Bxh5 {[%clk 0:00:00]}  gxh5 {[%clk 0:00:00]} 21. Qa1 {[%clk 0:00:00]}  f5 {[%clk 0:00:00]} 22. f3 {[%clk 0:00:00]}  Be6 {[%clk 0:00:00]} 23. Rb1 {[%clk 0:00:00]}  Qxb1+ {[%clk 0:00:00]} 24. Qxb1 {[%clk 0:00:00]}  fxe4 {[%clk 0:00:00]} 25. Ndxe4 {[%clk 0:00:00]}  d5 {[%clk 0:00:00]} 26. cxd5 {[%clk 0:00:00]}  cxd5 {[%clk 0:00:00]} 27. Nd6 {[%clk 0:00:00]}  e4 {[%clk 0:00:00]} 28. Qb3 {[%clk 0:00:00]}  Bd4+ {[%clk 0:00:00]} 29. Kf1 {[%clk 0:00:00]}  exf3 {[%clk 0:00:00]} 30. g3 {[%clk 0:00:00]}  Bh3+ {[%clk 0:00:00]} 31. Ke1 {[%clk 0:00:00]}  f2+ {[%clk 0:00:00]} 32. Kd2 {[%clk 0:00:00]}  Bxc3+ {[%clk 0:00:00]} 0-1


[Site "https://www.chess.com"]

[Event "Titled Tuesday Blitz August 16 Late 2022"]
[White "Mirimanian, Hayk"]
[Black "Ardila, Oscar Humberto"]
[WhiteFideId "4700180"]
[BlackFideId "4404742"]
[WhiteElo "2280"]
[BlackElo "1939"]
[Result "0-1"]
[Round "07"]
[TimeControl "180+1"]
[Date "2022.08.18"]
[WhiteClock "0:00:00"]
[BlackClock "0:00:00"]

1. e4 {[%clk 0:00:00]}  e5 {[%clk 0:00:00]} 2. Nf3 {[%clk 0:00:00]}  Nf6 {[%clk 0:00:00]} 3. Nc3 {[%clk 0:00:00]}  Nc6 {[%clk 0:00:00]} 4. Bb5 {[%clk 0:00:00]}  Bb4 {[%clk 0:00:00]} 5. O-O {[%clk 0:00:00]}  O-O {[%clk 0:00:00]} 6. d3 {[%clk 0:00:00]}  d6 {[%clk 0:00:00]} 7. Bg5 {[%clk 0:00:00]}  Bxc3 {[%clk 0:00:00]} 8. bxc3 {[%clk 0:00:00]}  Qe7 {[%clk 0:00:00]} 9. Ba4 {[%clk 0:00:00]}  Nd8 {[%clk 0:00:00]} 10. Qe2 {[%clk 0:00:00]}  Ne6 {[%clk 0:00:00]} 11. Bc1 {[%clk 0:00:00]}  c5 {[%clk 0:00:00]} 12. Bb3 {[%clk 0:00:00]}  Bd7 {[%clk 0:00:00]} 13. a4 {[%clk 0:00:00]}  Bc6 {[%clk 0:00:00]} 14. g3 {[%clk 0:00:00]}  b6 {[%clk 0:00:00]} 15. Nh4 {[%clk 0:00:00]}  g6 {[%clk 0:00:00]} 16. Bh6 {[%clk 0:00:00]}  Rfd8 {[%clk 0:00:00]} 17. Ng2 {[%clk 0:00:00]}  a6 {[%clk 0:00:00]} 18. f4 {[%clk 0:00:00]}  Nh5 {[%clk 0:00:00]} 19. f5 {[%clk 0:00:00]}  Neg7 {[%clk 0:00:00]} 20. g4 {[%clk 0:00:00]}  Nf6 {[%clk 0:00:00]} 21. g5 {[%clk 0:00:00]}  Nfh5 {[%clk 0:00:00]} 22. f6 {[%clk 0:00:00]}  Qd7 {[%clk 0:00:00]} 23. fxg7 {[%clk 0:00:00]}  d5 {[%clk 0:00:00]} 24. exd5 {[%clk 0:00:00]}  Bxd5 {[%clk 0:00:00]} 25. Bxd5 {[%clk 0:00:00]}  Qxd5 {[%clk 0:00:00]} 26. Qf3 {[%clk 0:00:00]}  Qe6 {[%clk 0:00:00]} 27. c4 {[%clk 0:00:00]}  Rab8 {[%clk 0:00:00]} 28. Rab1 {[%clk 0:00:00]}  Rd4 {[%clk 0:00:00]} 29. Ne3 {[%clk 0:00:00]}  e4 {[%clk 0:00:00]} 30. Qg4 {[%clk 0:00:00]}  Qe5 {[%clk 0:00:00]} 31. Nd5 {[%clk 0:00:00]}  exd3 {[%clk 0:00:00]} 32. Rxf7 {[%clk 0:00:00]}  Rxg4+ {[%clk 0:00:00]} 33. Kf2 {[%clk 0:00:00]}  Qe2# {[%clk 0:00:00]} 0-1


[Site "https://www.chess.com"]

[Event "Titled Tuesday Blitz August 16 Late 2022"]
[White "Moore, Alex"]
[Black "Stanisz, Patryk"]
[WhiteFideId "30910692"]
[BlackFideId "1123106"]
[WhiteElo "1912"]
[BlackElo "1833"]
[Result "0-1"]
[Round "07"]
[TimeControl "180+1"]
[Date "2022.08.18"]
[WhiteClock "0:00:00"]
[BlackClock "0:00:00"]

1. d4 {[%clk 0:00:00]}  d5 {[%clk 0:00:00]} 2. c4 {[%clk 0:00:00]}  c6 {[%clk 0:00:00]} 3. Nf3 {[%clk 0:00:00]}  Nf6 {[%clk 0:00:00]} 4. e3 {[%clk 0:00:00]}  e6 {[%clk 0:00:00]} 5. Nbd2 {[%clk 0:00:00]}  Bd6 {[%clk 0:00:00]} 6. Bd3 {[%clk 0:00:00]}  Qe7 {[%clk 0:00:00]} 7. O-O {[%clk 0:00:00]}  b6 {[%clk 0:00:00]} 8. e4 {[%clk 0:00:00]}  dxe4 {[%clk 0:00:00]} 9. Nxe4 {[%clk 0:00:00]}  Nxe4 {[%clk 0:00:00]} 10. Bxe4 {[%clk 0:00:00]}  Bb7 {[%clk 0:00:00]} 11. Bg5 {[%clk 0:00:00]}  Qc7 {[%clk 0:00:00]} 12. Re1 {[%clk 0:00:00]}  h6 {[%clk 0:00:00]} 13. Bh4 {[%clk 0:00:00]}  Nd7 {[%clk 0:00:00]} 14. d5 {[%clk 0:00:00]}  e5 {[%clk 0:00:00]} 15. dxc6 {[%clk 0:00:00]}  Bxc6 {[%clk 0:00:00]} 16. Bxc6 {[%clk 0:00:00]}  Qxc6 {[%clk 0:00:00]} 17. Qd2 {[%clk 0:00:00]}  g5 {[%clk 0:00:00]} 18. Bg3 {[%clk 0:00:00]}  O-O-O {[%clk 0:00:00]} 19. Rad1 {[%clk 0:00:00]}  Bc7 {[%clk 0:00:00]} 20. Qd5 {[%clk 0:00:00]}  Qxd5 {[%clk 0:00:00]} 21. cxd5 {[%clk 0:00:00]}  f6 {[%clk 0:00:00]} 22. Nd2 {[%clk 0:00:00]}  f5 {[%clk 0:00:00]} 23. d6 {[%clk 0:00:00]}  Bxd6 {[%clk 0:00:00]} 24. Nc4 {[%clk 0:00:00]}  Bc7 {[%clk 0:00:00]} 25. Rc1 {[%clk 0:00:00]}  f4 {[%clk 0:00:00]} 26. Nd6+ {[%clk 0:00:00]}  Kb8 {[%clk 0:00:00]} 27. Nf7 {[%clk 0:00:00]}  fxg3 {[%clk 0:00:00]} 28. hxg3 {[%clk 0:00:00]}  Nc5 {[%clk 0:00:00]} 29. Nxh8 {[%clk 0:00:00]}  Rxh8 {[%clk 0:00:00]} 30. Red1 {[%clk 0:00:00]}  Rd8 {[%clk 0:00:00]} 31. Rxd8+ {[%clk 0:00:00]}  Bxd8 {[%clk 0:00:00]} 32. b4 {[%clk 0:00:00]}  Ne6 {[%clk 0:00:00]} 33. Rc6 {[%clk 0:00:00]}  Nd4 {[%clk 0:00:00]} 34. Rxh6 {[%clk 0:00:00]}  Nc2 {[%clk 0:00:00]} 35. b5 {[%clk 0:00:00]}  Nd4 {[%clk 0:00:00]} 36. a4 {[%clk 0:00:00]}  Ne2+ {[%clk 0:00:00]} 37. Kf1 {[%clk 0:00:00]}  Nc3 {[%clk 0:00:00]} 38. Re6 {[%clk 0:00:00]}  Nxa4 {[%clk 0:00:00]} 39. Rxe5 {[%clk 0:00:00]}  Nc3 {[%clk 0:00:00]} 40. f4 {[%clk 0:00:00]}  gxf4 {[%clk 0:00:00]} 41. gxf4 {[%clk 0:00:00]}  a5 {[%clk 0:00:00]} 42. bxa6 {[%clk 0:00:00]}  b5 {[%clk 0:00:00]} 43. f5 {[%clk 0:00:00]}  b4 {[%clk 0:00:00]} 0-1


[Site "https://www.chess.com"]

[Event "Titled Tuesday Blitz August 16 Late 2022"]
[White "Naroditsky, Daniel"]
[Black "Akbas, Umut Ata"]
[WhiteFideId "2026961"]
[BlackFideId "44572646"]
[WhiteElo "2628"]
[BlackElo "1654"]
[Result "1-0"]
[Round "07"]
[TimeControl "180+1"]
[Date "2022.08.16"]
[WhiteClock "0:00:03"]
[BlackClock "0:00:14"]

1. e4 {[%clk 0:03:00]}  c5 {[%clk 0:02:55]} 2. Nf3 {[%clk 0:03:00]}  d6 {[%clk 0:02:56]} 3. Bb5+ {[%clk 0:03:01]}  Bd7 {[%clk 0:02:55]} 4. c4 {[%clk 0:03:02]}  Nf6 {[%clk 0:02:54]} 5. Nc3 {[%clk 0:03:02]}  e6 {[%clk 0:02:53]} 6. O-O {[%clk 0:02:59]}  Be7 {[%clk 0:02:51]} 7. d4 {[%clk 0:02:59]}  cxd4 {[%clk 0:02:52]} 8. Nxd4 {[%clk 0:03:00]}  O-O {[%clk 0:02:52]} 9. Bxd7 {[%clk 0:02:55]}  Nbxd7 {[%clk 0:02:50]} 10. b3 {[%clk 0:02:56]}  Rc8 {[%clk 0:02:46]} 11. Bb2 {[%clk 0:02:56]}  a6 {[%clk 0:02:42]} 12. Rc1 {[%clk 0:02:50]}  Qc7 {[%clk 0:02:38]} 13. Re1 {[%clk 0:02:49]}  Rfd8 {[%clk 0:02:37]} 14. Qf3 {[%clk 0:02:41]}  Bf8 {[%clk 0:02:33]} 15. Qg3 {[%clk 0:02:35]}  g6 {[%clk 0:01:58]} 16. Rcd1 {[%clk 0:02:30]}  Bg7 {[%clk 0:01:56]} 17. h3 {[%clk 0:02:08]}  Nc5 {[%clk 0:01:53]} 18. Qe3 {[%clk 0:02:01]}  Qb8 {[%clk 0:01:40]} 19. Rd2 {[%clk 0:01:54]}  b5 {[%clk 0:01:33]} 20. cxb5 {[%clk 0:01:32]}  axb5 {[%clk 0:01:34]} 21. b4 {[%clk 0:01:11]}  Na4 {[%clk 0:01:33]} 22. Nxa4 {[%clk 0:01:10]}  bxa4 {[%clk 0:01:33]} 23. a3 {[%clk 0:01:05]}  d5 {[%clk 0:01:30]} 24. exd5 {[%clk 0:01:04]}  Nxd5 {[%clk 0:01:30]} 25. Qf3 {[%clk 0:01:01]}  Rc4 {[%clk 0:01:10]} 26. Red1 {[%clk 0:00:58]}  h5 {[%clk 0:00:59]} 27. Qe2 {[%clk 0:00:50]}  Qc8 {[%clk 0:00:56]} 28. Nf3 {[%clk 0:00:38]}  Bxb2 {[%clk 0:00:52]} 29. Rxb2 {[%clk 0:00:39]}  Rc3 {[%clk 0:00:46]} 30. Ra2 {[%clk 0:00:17]}  Qc7 {[%clk 0:00:41]} 31. Qe5 {[%clk 0:00:16]}  Qc4 {[%clk 0:00:39]} 32. Raa1 {[%clk 0:00:16]}  Rc8 {[%clk 0:00:32]} 33. Ng5 {[%clk 0:00:13]}  Qf4 {[%clk 0:00:30]} 34. Qxf4 {[%clk 0:00:09]}  Nxf4 {[%clk 0:00:30]} 35. Ne4 {[%clk 0:00:08]}  Rb3 {[%clk 0:00:27]} 36. Nc5 {[%clk 0:00:08]}  Rb2 {[%clk 0:00:26]} 37. Nxa4 {[%clk 0:00:08]}  Re2 {[%clk 0:00:26]} 38. Rac1 {[%clk 0:00:07]}  Ra8 {[%clk 0:00:25]} 39. Nc3 {[%clk 0:00:08]}  Rb2 {[%clk 0:00:25]} 40. Ra1 {[%clk 0:00:04]}  Rb3 {[%clk 0:00:23]} 41. Nb5 {[%clk 0:00:05]}  Ne2+ {[%clk 0:00:20]} 42. Kh2 {[%clk 0:00:05]}  Nc3 {[%clk 0:00:21]} 43. Rd3 {[%clk 0:00:04]}  Rxb4 {[%clk 0:00:14]} 44. axb4 {[%clk 0:00:03]} 1-0


[Site "https://www.chess.com"]

[Event "Titled Tuesday Blitz August 16 Late 2022"]
[White "Oro, Luis"]
[Black "Howell, David W L"]
[WhiteFideId "104094"]
[BlackFideId "410608"]
[WhiteElo "2255"]
[BlackElo "2559"]
[Result "0-1"]
[Round "07"]
[TimeControl "180+1"]
[Date "2022.08.18"]
[WhiteClock "0:00:00"]
[BlackClock "0:00:00"]

1. e4 {[%clk 0:00:00]}  c5 {[%clk 0:00:00]} 2. Nf3 {[%clk 0:00:00]}  a6 {[%clk 0:00:00]} 3. c4 {[%clk 0:00:00]}  Nc6 {[%clk 0:00:00]} 4. d4 {[%clk 0:00:00]}  cxd4 {[%clk 0:00:00]} 5. Nxd4 {[%clk 0:00:00]}  e5 {[%clk 0:00:00]} 6. Nc2 {[%clk 0:00:00]}  Bc5 {[%clk 0:00:00]} 7. Nc3 {[%clk 0:00:00]}  d6 {[%clk 0:00:00]} 8. Bd3 {[%clk 0:00:00]}  Nf6 {[%clk 0:00:00]} 9. O-O {[%clk 0:00:00]}  Bg4 {[%clk 0:00:00]} 10. Be2 {[%clk 0:00:00]}  Be6 {[%clk 0:00:00]} 11. Kh1 {[%clk 0:00:00]}  Rc8 {[%clk 0:00:00]} 12. b3 {[%clk 0:00:00]}  h6 {[%clk 0:00:00]} 13. f4 {[%clk 0:00:00]}  exf4 {[%clk 0:00:00]} 14. Bxf4 {[%clk 0:00:00]}  Ne5 {[%clk 0:00:00]} 15. Nd4 {[%clk 0:00:00]}  O-O {[%clk 0:00:00]} 16. Qd2 {[%clk 0:00:00]}  Ng6 {[%clk 0:00:00]} 17. Bg3 {[%clk 0:00:00]}  Bb4 {[%clk 0:00:00]} 18. Bd3 {[%clk 0:00:00]}  Ng4 {[%clk 0:00:00]} 19. a3 {[%clk 0:00:00]}  Bc5 {[%clk 0:00:00]} 20. Be2 {[%clk 0:00:00]}  N4e5 {[%clk 0:00:00]} 21. Nf5 {[%clk 0:00:00]}  Qg5 {[%clk 0:00:00]} 22. Qxg5 {[%clk 0:00:00]}  hxg5 {[%clk 0:00:00]} 23. Rfd1 {[%clk 0:00:00]}  Rfd8 {[%clk 0:00:00]} 24. Na4 {[%clk 0:00:00]}  Bxf5 {[%clk 0:00:00]} 25. exf5 {[%clk 0:00:00]}  Nf4 {[%clk 0:00:00]} 26. Nxc5 {[%clk 0:00:00]}  dxc5 {[%clk 0:00:00]} 27. Bf1 {[%clk 0:00:00]}  f6 {[%clk 0:00:00]} 28. h4 {[%clk 0:00:00]}  Kf7 {[%clk 0:00:00]} 29. hxg5 {[%clk 0:00:00]}  fxg5 {[%clk 0:00:00]} 30. Kg1 {[%clk 0:00:00]}  Kf6 {[%clk 0:00:00]} 31. Kf2 {[%clk 0:00:00]}  Kxf5 {[%clk 0:00:00]} 32. Rab1 {[%clk 0:00:00]}  b6 {[%clk 0:00:00]} 33. Bh2 {[%clk 0:00:00]}  Ng4+ {[%clk 0:00:00]} 34. Kg1 {[%clk 0:00:00]}  Nxh2 {[%clk 0:00:00]} 35. Kxh2 {[%clk 0:00:00]}  a5 {[%clk 0:00:00]} 36. g3 {[%clk 0:00:00]}  Ne6 {[%clk 0:00:00]} 37. Bh3+ {[%clk 0:00:00]}  g4 {[%clk 0:00:00]} 38. Bg2 {[%clk 0:00:00]}  Rxd1 {[%clk 0:00:00]} 39. Rxd1 {[%clk 0:00:00]}  Nd4 {[%clk 0:00:00]} 40. Rf1+ {[%clk 0:00:00]}  Kg6 {[%clk 0:00:00]} 41. Be4+ {[%clk 0:00:00]}  Kg5 {[%clk 0:00:00]} 42. Rf7 {[%clk 0:00:00]}  Re8 {[%clk 0:00:00]} 43. Rxg7+ {[%clk 0:00:00]}  Kf6 {[%clk 0:00:00]} 44. Rg6+ {[%clk 0:00:00]}  Kf7 {[%clk 0:00:00]} 45. Bd3 {[%clk 0:00:00]}  Re3 {[%clk 0:00:00]} 46. Bb1 {[%clk 0:00:00]}  Re2+ {[%clk 0:00:00]} 47. Kg1 {[%clk 0:00:00]}  Re1+ {[%clk 0:00:00]} 48. Kf2 {[%clk 0:00:00]}  Rxb1 {[%clk 0:00:00]} 49. Rxb6 {[%clk 0:00:00]}  Rb2+ {[%clk 0:00:00]} 50. Kf1 {[%clk 0:00:00]}  Rxb3 {[%clk 0:00:00]} 51. Ra6 {[%clk 0:00:00]}  Rxa3 {[%clk 0:00:00]} 0-1


[Site "https://www.chess.com"]

[Event "Titled Tuesday Blitz August 16 Late 2022"]
[White "Potapova, Margarita"]
[Black "Rios Escobar, Adan"]
[WhiteFideId "14126869"]
[BlackFideId "3403645"]
[WhiteElo "2225"]
[BlackElo "2276"]
[Result "1-0"]
[Round "07"]
[TimeControl "180+1"]
[Date "2022.08.18"]
[WhiteClock "0:00:00"]
[BlackClock "0:00:00"]

1. d4 {[%clk 0:00:00]}  Nf6 {[%clk 0:00:00]} 2. c4 {[%clk 0:00:00]}  g6 {[%clk 0:00:00]} 3. Nc3 {[%clk 0:00:00]}  Bg7 {[%clk 0:00:00]} 4. e4 {[%clk 0:00:00]}  d6 {[%clk 0:00:00]} 5. h3 {[%clk 0:00:00]}  O-O {[%clk 0:00:00]} 6. Be3 {[%clk 0:00:00]}  Nc6 {[%clk 0:00:00]} 7. d5 {[%clk 0:00:00]}  Ne5 {[%clk 0:00:00]} 8. Nf3 {[%clk 0:00:00]}  Nxf3+ {[%clk 0:00:00]} 9. Qxf3 {[%clk 0:00:00]}  c5 {[%clk 0:00:00]} 10. Bd3 {[%clk 0:00:00]}  Nd7 {[%clk 0:00:00]} 11. Qe2 {[%clk 0:00:00]}  a6 {[%clk 0:00:00]} 12. O-O {[%clk 0:00:00]}  Rb8 {[%clk 0:00:00]} 13. a4 {[%clk 0:00:00]}  Ne5 {[%clk 0:00:00]} 14. Bc2 {[%clk 0:00:00]}  f5 {[%clk 0:00:00]} 15. f4 {[%clk 0:00:00]}  Nf7 {[%clk 0:00:00]} 16. e5 {[%clk 0:00:00]}  dxe5 {[%clk 0:00:00]} 17. fxe5 {[%clk 0:00:00]}  Bxe5 {[%clk 0:00:00]} 18. Bxc5 {[%clk 0:00:00]}  Qc7 {[%clk 0:00:00]} 19. Bf2 {[%clk 0:00:00]}  Bf6 {[%clk 0:00:00]} 20. c5 {[%clk 0:00:00]}  Bd7 {[%clk 0:00:00]} 21. Bb3 {[%clk 0:00:00]}  Kg7 {[%clk 0:00:00]} 22. Rfe1 {[%clk 0:00:00]}  Qa5 {[%clk 0:00:00]} 23. Rad1 {[%clk 0:00:00]}  Ne5 {[%clk 0:00:00]} 24. Bd4 {[%clk 0:00:00]}  Qb4 {[%clk 0:00:00]} 25. Bxe5 {[%clk 0:00:00]}  Qxb3 {[%clk 0:00:00]} 26. Bxf6+ {[%clk 0:00:00]}  exf6 {[%clk 0:00:00]} 27. d6 {[%clk 0:00:00]}  Rbe8 {[%clk 0:00:00]} 28. Qd3 {[%clk 0:00:00]}  Bxa4 {[%clk 0:00:00]} 29. Ra1 {[%clk 0:00:00]}  Bc6 {[%clk 0:00:00]} 30. d7 {[%clk 0:00:00]}  Rxe1+ {[%clk 0:00:00]} 31. Rxe1 {[%clk 0:00:00]}  Qb4 {[%clk 0:00:00]} 32. d8=Q {[%clk 0:00:00]}  Rxd8 {[%clk 0:00:00]} 33. Qxd8 {[%clk 0:00:00]}  Qxb2 {[%clk 0:00:00]} 34. Qe7+ {[%clk 0:00:00]}  Kh6 {[%clk 0:00:00]} 35. Qe3+ {[%clk 0:00:00]}  Kg7 {[%clk 0:00:00]} 36. Re2 {[%clk 0:00:00]}  Qa1+ {[%clk 0:00:00]} 37. Kh2 {[%clk 0:00:00]}  a5 {[%clk 0:00:00]} 38. Qd2 {[%clk 0:00:00]} 1-0


[Site "https://www.chess.com"]

[Event "Titled Tuesday Blitz August 16 Late 2022"]
[White "Remolar Gallen, Jose"]
[Black "Sailer, Mike"]
[WhiteFideId "2215187"]
[BlackFideId "2012901"]
[WhiteElo "2205"]
[BlackElo "2109"]
[Result "1-0"]
[Round "07"]
[TimeControl "180+1"]
[Date "2022.08.18"]
[WhiteClock "0:00:00"]
[BlackClock "0:00:00"]

1. e4 {[%clk 0:00:00]}  d5 {[%clk 0:00:00]} 2. exd5 {[%clk 0:00:00]}  Qxd5 {[%clk 0:00:00]} 3. Nc3 {[%clk 0:00:00]}  Qd6 {[%clk 0:00:00]} 4. d4 {[%clk 0:00:00]}  Nf6 {[%clk 0:00:00]} 5. Nf3 {[%clk 0:00:00]}  c6 {[%clk 0:00:00]} 6. Ne5 {[%clk 0:00:00]}  Nbd7 {[%clk 0:00:00]} 7. Bf4 {[%clk 0:00:00]}  Nxe5 {[%clk 0:00:00]} 8. dxe5 {[%clk 0:00:00]}  Qxd1+ {[%clk 0:00:00]} 9. Rxd1 {[%clk 0:00:00]}  Nh5 {[%clk 0:00:00]} 10. Be3 {[%clk 0:00:00]}  g6 {[%clk 0:00:00]} 11. Be2 {[%clk 0:00:00]}  Ng7 {[%clk 0:00:00]} 12. Nb5 {[%clk 0:00:00]}  cxb5 {[%clk 0:00:00]} 13. Bxb5+ {[%clk 0:00:00]}  Bd7 {[%clk 0:00:00]} 14. Bxd7+ {[%clk 0:00:00]}  Kd8 {[%clk 0:00:00]} 15. e6 {[%clk 0:00:00]}  fxe6 {[%clk 0:00:00]} 16. Bf4 {[%clk 0:00:00]}  Nf5 {[%clk 0:00:00]} 17. Bxe6+ {[%clk 0:00:00]}  Ke8 {[%clk 0:00:00]} 18. g4 {[%clk 0:00:00]}  Nh4 {[%clk 0:00:00]} 19. Ke2 {[%clk 0:00:00]}  Bg7 {[%clk 0:00:00]} 20. Bg3 {[%clk 0:00:00]}  g5 {[%clk 0:00:00]} 21. Rd7 {[%clk 0:00:00]}  Bxb2 {[%clk 0:00:00]} 22. Rhd1 {[%clk 0:00:00]}  Rf8 {[%clk 0:00:00]} 23. Bc7 {[%clk 0:00:00]} 1-0


[Site "https://www.chess.com"]